Cogmind - Beta 17.1 @@@ ROGUE MODE // 2026.09.05 @ 15:42:22 Player: Finn Result: Destroyed by G-47 Trooper with Particle Gun Performance ------------- Evolutions (3) 1500 Regions Visited (5) 1000 Robots Destroyed (17) 85 Value Destroyed (328) 328 Prototype IDs (1) 20 Alien Tech Used (0) 0 Bonus (195) 195 TOTAL SCORE: 3128 Bonus ------- Follower Combat Kills 195 Cogmind --------- Core Integrity 0/700 Matter 76/300 Energy 99/100 System Corruption 2% Temperature Cool (38) Movement Core (50) Location -7/Factory Parts ------- > --- POWER (2) -------- (None) > --- PROPULSION (6) --- (None) > --- UTILITY (3) ------ (None) > --- WEAPON (2) ------- (None) > --- INVENTORY (5) ---- Ion Engine Wheel Core Analyzer Medium Laser Rocket Launcher Peak State ------------ > --- POWER ------------ Ion Engine > --- PROPULSION ------- Flight Unit Cesium-ion Thruster Cesium-ion Thruster Cesium-ion Thruster Cesium-ion Thruster > --- UTILITY ---------- Small Storage Unit Improved Sensor Array Experimental Sensor Array > --- WEAPON ----------- Assault Rifle Rocket Launcher > --- INVENTORY -------- Ion Engine Light Ion Engine Wheel Flight Unit Light Armor Plating Medium Laser Assault Rifle [Rating: 30] Favorites ----------- Power Light Ion Engine Engine Light Ion Engine Propulsion Cesium-ion Thruster Wheel Wheel Flight Unit Cesium-ion Thruster Utility Small Storage Unit Device Seismic Detector Storage Small Storage Unit Protection Light Armor Plating Weapon Assault Rifle Energy Gun Medium Laser Ballistic Gun Assault Rifle Launcher Rocket Launcher Build | -11 -10 -9 -9 -8 -7 ------- Run | Yrd Mat Mat Min Mat Fac Slots Evolved 6 | . . 2 . 2 2 Power 1 | . . . . . 1 Propulsion 4 | . . 1 . 2 1 Utility 1 | . . 1 . . . Weapon . | . . . . . . Parts Attached 24 | 7 1 5 1 8 2 Power 3 | 1 1 . . 1 . Engine 3 | 1 1 . . 1 . Core . | . . . . . . Reactor . | . . . . . . Propulsion 11 | 2 . 4 . 5 . Treads . | . . . . . . Leg . | . . . . . . Wheel 4 | 2 . 1 . 1 . Hover . | . . . . . . Flight 7 | . . 3 . 4 . Utility 6 | 2 . 1 1 1 1 Device 4 | 1 . 1 1 1 . Storage 1 | 1 . . . . . Processor . | . . . . . . Hackware . | . . . . . . Protection 1 | . . . . . 1 Artifact . | . . . . . . Weapon 4 | 2 . . . 1 1 Energy Gun 1 | . . . . . 1 Energy Cannon . | . . . . . . Ballistic Gun 2 | 2 . . . . . Ballistic Cannon . | . . . . . . Launcher 1 | . . . . 1 . Special Weapon . | . . . . . . Impact Weapon . | . . . . . . Slashing Weapon . | . . . . . . Piercing Weapon . | . . . . . . Special Melee Weapon . | . . . . . . Unidentified Prototypes 1 | . . . . 1 . Parts Lost 15 | . . . . 5 10 Power 2 | . . . . . 2 Propulsion 7 | . . . . 2 5 Utility 5 | . . . . 2 3 Weapon 1 | . . . . 1 . Highest Loss Streak 8 | . . . . 3 8 To Critical Strikes . | . . . . . . Average Backups 6 | 2 4 6 8 7 5 Power 1 | . 1 2 2 2 1 Propulsion 1 | . 1 2 2 1 1 Utility . | . . . 1 1 . Weapon 2 | 1 1 2 2 2 2 Tool/Special . | . . . . . . Unused Backups 2 | . . . 1 . 1 Power . | . . . . . . Propulsion 1 | . . . 1 . . Utility 1 | . . . . . 1 Weapon . | . . . . . . Tool/Special . | . . . . . . Average Slot Usage (%) 88 | . 100 91 100 96 63 Engine 11 | . 14 11 11 9 11 Wheel 5 | . 28 20 . . . Flight 27 | . . 11 33 43 26 Device 14 | . 14 14 22 16 6 Storage 9 | . 14 11 11 9 6 Protection 1 | . . . . . 5 Ballistic Gun 15 | . 28 22 22 16 1 Peak Build Rating 30 | 7 7 18 18 30 26 Average Rating 18 | 3 7 11 18 27 20 On Entrance 12 | . 7 7 18 18 23 Avg Prop Armor Cover (%) . | . . . . . . Naked Turns 42 | . . . . . 42 Heaviest Build 21 | 15 15 14 14 18 21 Greatest Support 30 | 20 20 30 15 25 23 Greatest Overweight (x) 3 | 1 . 1 . . 3 Average Overweight (x) . | . . . . . . Largest Inventory Capacity 8 | 8 8 8 8 8 8 Average Capacity 7 | 6 8 8 8 8 7 Most Carried 8 | 5 5 8 8 8 7 Average Carried 6 | 2 4 6 7 7 5 Final Capacity 8 | 8 8 8 8 8 5 Final Carried 8 | 3 5 8 8 7 5 Class Distribution -------------------- 71% | Sprinter 28% | Mutant Dominant Class ---------------- Mutant | -10/Materials Mutant | -9/Materials Sprinter | -9/Mines Sprinter | -8/Materials Sprinter | -7/Factory Resources | -11 -10 -9 -9 -8 -7 ----------- Run | Yrd Mat Mat Min Mat Fac Matter Collected 480 | 112 . 153 189 26 . Remotely . | . . . . . . Salvage Created 358 | 117 . 87 . 154 . Parts 40 | 11 . 5 . 24 . Haulers Intercepted . | . . . . . . Recyclers Shooed . | . . . . . . Parts Field Recycled . | . . . . . . Retrieved Matter . | . . . . . . Parts Self-Destructed . | . . . . . . Prevented . | . . . . . . Parts Restored . | . . . . . . Kills | -11 -10 -9 -9 -8 -7 ------- Run | Yrd Mat Mat Min Mat Fac Combat Hostiles Destroyed 12 | . . 2 . 10 . Guns 8 | . . 2 . 6 . AOE 4 | . . . . 4 . Classes Destroyed 6 | 2 . 1 . 3 . Worker 1 | . . . . 1 . Tunneler 3 | 3 . . . . . Recycler 1 | 1 . . . . . Swarmer 8 | . . . . 8 . Grunt 3 | . . 2 . 1 . Sentry 1 | . . . . 1 . Best Kill Streak 7 | 3 . 2 . 7 . Combat Bots Only 6 | . . 2 . 6 . Max Kills in Single Turn 2 | 1 . 1 . 2 . Gunslinging . | . . . . . . Exploded 1 | . . . . 1 . Melee . | . . . . . . Uniques/NPCs Destroyed . | . . . . . . Combat | -11 -10 -9 -9 -8 -7 -------- Run | Yrd Mat Mat Min Mat Fac Hostile Shots Fired 214 | . . 11 2 75 126 Missed 97 | . . 3 2 36 56 Hits 117 | . . 8 . 39 70 Projectile 117 | . . 8 . 39 70 Critical Strikes 1 | . . . . . 1 Damage Taken 1743 | . 32 89 . 458 1164 Core 796 | . . 11 . 73 712 Absorbed by Shields . | . . . . . . Core Remaining (%) 95 | 100 100 . 97 86 . Volleys Fired 38 | 10 . 5 4 19 . Largest 2 | 2 . 2 2 2 . Hottest 53 | 40 . 40 40 53 . Shots Fired 70 | 20 . 10 8 32 . Gun 61 | 20 . 10 8 23 . Cannon . | . . . . . . Launcher 9 | . . . . 9 . Special . | . . . . . . Kinetic 61 | 20 . 10 8 23 . Thermal . | . . . . . . Explosive 9 | . . . . 9 . Electromagnetic . | . . . . . . Robot Hit Streak 8 | 8 . 7 8 5 . Robot Miss Streak 4 | 2 . 2 1 4 . Penetration Max . | . . . . . . Secondary Targets 1 | . . 1 . . . Max Gunslinging Chain 1 | . . 1 . . . Shots Hit Robots 39 | 15 . 7 5 12 . Core Hits 21 | 4 . 3 1 13 . Critical Kills . | . . . . . . Critical Parts Destroyed . | . . . . . . Critical Strikes . | . . . . . . Melee Attacks . | . . . . . . Impact . | . . . . . . Slashing . | . . . . . . Piercing . | . . . . . . Sneak Attacks . | . . . . . . Combat Hostiles . | . . . . . . Follow-up Attacks . | . . . . . . Damage Inflicted 775 | 181 . 91 64 416 23 Guns 449 | 181 . 91 64 113 . Cannons . | . . . . . . Explosions 303 | . . . . 303 . Melee . | . . . . . . Ramming 23 | . . . . . 23 Kinetic 449 | 181 . 91 64 113 . Thermal . | . . . . . . Explosive 303 | . . . . 303 . Electromagnetic . | . . . . . . Impact . | . . . . . . Slashing . | . . . . . . Piercing . | . . . . . . Highest Corruption 2 | . . . . . 2 Average Corruption 2 | . . . . . 2 Corruption Purged . | . . . . . . Corruption Blocked . | . . . . . . Effects 1 | . . . . . 1 Heat Flow Errors 1 | . . . . . 1 Overload Shots . | . . . . . . Overflow Damage 49 | . . . . 49 . Projectiles . | . . . . . . Explosions 49 | . . . . 49 . Melee . | . . . . . . Knockbacks . | . . . . . . Impact . | . . . . . . Kinetic . | . . . . . . Secondary . | . . . . . . Self-Inflicted Damage 125 | . . . . 114 11 Shots 2 | . . . . 2 . Rammed 4 | . . . . . 4 Targets Rammed 4 | . . . . . 4 Kicked . | . . . . . . Crushed . | . . . . . . Highest Temperature 220 | . . . . 26 220 Average Temperature 61 | . . . . 6 95 Received Heat Transfer 441 | . . 36 . 27 378 Effects 2 | . . . . . 2 Interference 2 | . . . . . 2 Siege Activations . | . . . . . . Martial Activations . | . . . . . . Shielding Activations . | . . . . . . Robots Disrupted . | . . . . . . Combat Hostiles . | . . . . . . Robots Corrupted . | . . . . . . Combat Hostiles . | . . . . . . Parts Fried . | . . . . . . Impact Corruptions . | . . . . . . Robots Melted . | . . . . . . Combat Hostiles . | . . . . . . Parts Melted . | . . . . . . Heat Transferred . | . . . . . . Parts Sabotaged . | . . . . . . Parts Stolen . | . . . . . . Parts Stripped . | . . . . . . Power Chain Reactions . | . . . . . . Alert | -11 -10 -9 -9 -8 -7 ------- Run | Yrd Mat Mat Min Mat Fac Maximum Alert Level 2 | . . . . 2 1 Low Security (%) 97 | 100 100 100 100 88 99 Level 1 2 | . . . . 9 . Level 2 . | . . . . 1 . Level 3 . | . . . . . . Level 4 . | . . . . . . Level 5 . | . . . . . . High Security . | . . . . . . Max Security . | . . . . . . Peak Influence 400 | 10 7 40 91 400 214 Initial 177 | . . . . 35 177 Average 52 | 1 . 7 14 66 126 Influence Increases 1166 | 20 7 40 185 555 359 Destroy 0b10 Robot/C 380 | . . 40 140 200 . Destroy 0b10 Robot/NC 25 | 20 . . . 5 . Destroy Leader 50 | . . . 20 30 . Allied During Kill 25 | . . . 25 . . Successful Hack 36 | . 7 . . . 29 Disable Machine 90 | . . . . 90 . Destroy Structure 50 | . . . . 50 . Partial Spotted 60 | . . . . 30 30 Lose Combat Pursuer 450 | . . . . 150 300 Influence Decreases 952 | 20 7 40 94 256 535 Entered New Map 269 | . . . . 56 213 Time Decay 533 | 20 7 40 94 150 222 Lost Part 150 | . . . . 50 100 Squads Dispatched 5 | . . 1 . 1 3 Investigation 2 | . . 1 . 1 . Extermination 1 | . . . . . 1 Reinforcement 2 | . . . . . 2 Assault . | . . . . . . Garrison . | . . . . . . Intercept . | . . . . . . Searches Triggered . | . . . . . . Construction Impeded . | . . . . . . Haulers Reinforced . | . . . . . . Active Scanning Responses . | . . . . . . Cargo Convoy Interrupts . | . . . . . . Stealth | -11 -10 -9 -9 -8 -7 --------- Run | Yrd Mat Mat Min Mat Fac Distress Signals 6 | . . 1 . 4 1 Communications Jammed . | . . . . . . Distress Signals . | . . . . . . Times Spotted 76 | . 2 9 6 26 33 Peak Tracking Total 14 | . 2 6 3 13 14 Tactical Retreats 10 | . . . . 4 6 Traps | -11 -10 -9 -9 -8 -7 ------- Run | Yrd Mat Mat Min Mat Fac Traps Triggered 4 | . 1 . . . 3 Indirectly . | . . . . . . Trap Hack Attempts . | . . . . . . Triggered . | . . . . . . Disarmed . | . . . . . . Reprogrammed . | . . . . . . Reused . | . . . . . . Traps Extracted . | . . . . . . Installed . | . . . . . . Triggered . | . . . . . . Machines | -11 -10 -9 -9 -8 -7 ---------- Run | Yrd Mat Mat Min Mat Fac Machines Disabled 6 | . . . . 6 . Max in Single Turn 3 | . . . . 3 . Garrison Access 1 | . . . . 1 . Machines Repaired . | . . . . . . Machines Dismantled . | . . . . . . Machines Sabotaged . | . . . . . . Overloaded Fab Kills . | . . . . . . Hacking | -11 -10 -9 -9 -8 -7 --------- Run | Yrd Mat Mat Min Mat Fac Machines Accessed 12 | . 2 2 1 5 2 Terminals 8 | . 2 1 . 4 1 Fabricators . | . . . . . . Repair Stations 1 | . . . . . 1 Recycling Units . | . . . . . . Scanalyzers 1 | . . 1 . . . Garrison Access 1 | . . . . 1 . Total Hacks 17 | . 3 4 1 6 3 Successful 10 | . 2 3 1 2 2 Failed 7 | . 1 1 . 4 1 Catastrophic 1 | . . . . 1 . Database Lockouts . | . . . . . . Manual . | . . . . . . Terminals 10 | . 3 1 . 5 1 Fabricators . | . . . . . . Repair Stations 2 | . . . . . 2 Recycling Units . | . . . . . . Scanalyzers 3 | . . 3 . . . Garrison Access 1 | . . . . 1 . Terminal Hacks 5 | . 2 . 1 1 1 Open Door 1 | . . . 1 . . Branch Access Points 1 | . 1 . . . . Registered Components 1 | . 1 . . . . Zone Layout 2 | . . . . 1 1 Fabricator Hacks . | . . . . . . Repair Station Hacks 1 | . . . . . 1 Scan Component 1 | . . . . . 1 Recycling Unit Hacks . | . . . . . . Scanalyzer 3 | . . 3 . . . Insert Component 1 | . . 1 . . . Analyze 1 | . . 1 . . . Retrieve Study 1 | . . 1 . . . Garrison Access Hacks 1 | . . . . 1 . Seal Access 1 | . . . . 1 . Unauthorized Hacks . | . . . . . . Terminals . | . . . . . . Fabricators . | . . . . . . Repair Stations . | . . . . . . Recycling Units . | . . . . . . Scanalyzers . | . . . . . . Garrison Access . | . . . . . . Data Cores Recovered . | . . . . . . Used . | . . . . . . Hacking Detections 4 | . 1 1 . 1 1 Full Trace Events 2 | . . 1 . 1 . Feedback Events . | . . . . . . Feedback Blocked . | . . . . . . Robot Schematics Acquired . | . . . . . . Robots Built . | . . . . . . Authchips . | . . . . . . Time . | . . . . . . Total Robot Build Rating . | . . . . . . Part Schematics Acquired . | . . . . . . Parts Built . | . . . . . . Authchips . | . . . . . . Time . | . . . . . . Total Part Build Rating . | . . . . . . Part Studies Acquired . | . . . . . . Parts Repaired . | . . . . . . Time . | . . . . . . Parts Recycled . | . . . . . . Recycled Matter . | . . . . . . Retrieved Matter . | . . . . . . Retrieved Components . | . . . . . . Parts Scanalyzed 1 | . . 1 . . . Part Schematics Acquired . | . . . . . . Parts Damaged . | . . . . . . Bothacking | -11 -10 -9 -9 -8 -7 ------------ Run | Yrd Mat Mat Min Mat Fac Used RIF Installer . | . . . . . . Robots Hacked . | . . . . . . Non-combat . | . . . . . . Combat . | . . . . . . Robot Hacks Applied . | . . . . . . Relay Couplers Released . | . . . . . . Fabnet Peak Effective % . | . . . . . . Robots Rewired . | . . . . . . Allies Hacked . | . . . . . . Hacks Repelled . | . . . . . . Allies | -11 -10 -9 -9 -8 -7 -------- Run | Yrd Mat Mat Min Mat Fac Total Allies 3 | . . . 3 . . Largest Group 3 | . . . 3 . . Highest-Rated Group 40 | . . . 40 . . Highest-Rated Ally 16 | . . . 16 . . Total Orders . | . . . . . . Ally Attacks 29 | . . . 29 . . Total Damage 330 | . . . 330 . . Kills 7 | . . . 7 . . Allies Corrupted . | . . . . . . Allies Melted . | . . . . . . Intel | -11 -10 -9 -9 -8 -7 ------- Run | Yrd Mat Mat Min Mat Fac Active Infowar (turns) 1579 | 15 189 197 428 334 416 Sensors 1244 | . . 66 428 334 416 Seismic 874 | 15 189 197 428 45 . Robot Analysis Total . | . . . . . . Derelict Logs Recovered 2 | . . . 2 . . Drone Launches . | . . . . . . Drone Recoveries . | . . . . . . Exploration | -11 -10 -9 -9 -8 -7 ------------- Run | Yrd Mat Mat Min Mat Fac Turns Passed 1727 | 81 189 197 428 372 460 Spaces Moved 2677 | 49 164 196 481 658 1129 Core 138 | 24 . . . . 114 Treads . | . . . . . . Legs . | . . . . . . Wheels 308 | 25 164 119 . . . Hover . | . . . . . . Flight 2231 | . . 77 481 658 1015 Fastest Speed 23 | 50 80 29 29 23 25 Average Speed 35 | 70 80 60 29 24 32 Slowest Speed 200 | 95 80 117 29 27 200 Overloaded Moves . | . . . . . . Propulsion Burnouts . | . . . . . . Robots Hopped 29 | . . . 2 13 14 Potential Cave-ins . | . . . . . . Cave-ins Triggered . | . . . . . . Exploration Rate (%) 40 | 4 38 26 94 54 29 Regions Visited 5 Branch Regions 1 Pre-discovered Areas . | . . . . . . Known Exits Taken 1 | . . . . 1 . Unknown Exits Taken 4 | 1 1 1 1 . . Scrap Searched 1 | . . . 1 . . Spaces Dug . | . . . . . . Terrain Destroyed 57 | . . . . 57 . Melee . | . . . . . . Projectile . | . . . . . . AOE 57 | . . . . 57 . Terrain Rammed . | . . . . . . Walls Destroyed . | . . . . . . Machines Disabled . | . . . . . . Actions | -11 -10 -9 -9 -8 -7 --------- Run | Yrd Mat Mat Min Mat Fac Total 3354 | 74 221 262 760 822 1215 Wait 576 | . 55 51 272 145 53 Move 2618 | 48 163 195 476 632 1104 Hop 25 | . . . 2 12 11 Pick Up 21 | 9 2 5 2 2 1 Fast Attach 3 | 1 . 1 . 1 . Attach 19 | 6 . 1 . 5 7 Detach 7 | . . . . 2 5 Swap 9 | . 1 3 1 4 . Drop 4 | . . 1 3 . . Fire 38 | 10 . 5 4 19 . Melee . | . . . . . . Ram 4 | . . . . . 4 Kick . | . . . . . . Crush . | . . . . . . Escape Stasis 30 | . . . . . 30 Rewire . | . . . . . . Trap . | . . . . . . Miscellaneous . | . . . . . . Route ------- -11/Scrapyard -10/Materials (discovered 3 exits: *Mat / *Min x2) -9/Materials (discovered 2 exits: *Min / [*Sto]) -9/Mines (discovered 3 exits: *Mat x2 / [*Exi]) -8/Materials (discovered 2 exits: *Fac x2) -7/Factory History --------- Turn | Location | Event 8 | -11/Scrapyard | Discovered new exit (range 14) 82 | -11/Scrapyard | Entered Materials 137 | -10/Materials | Discovered new exit (range 15) 200 | -10/Materials | Discovered new exit (range 6) 217 | -10/Materials | Identified exit to Mines 271 | -10/Materials | Entered another Materials area 271 | -9/Materials | Evolved 2 slots: Propulsion x1, Utility x1 316 | -9/Materials | Build established: Mutant 464 | -9/Materials | Discovered new exit (range 16) 467 | -9/Materials | Discovered new exit (range 16) 468 | -9/Materials | Entered Mines 470 | -9/Mines | Learned location of 1 exit from Materials 471 | -9/Mines | Assisted by bots powering up and referring to "LRC-V3" 495 | -9/Mines | Found a damaged Exp. Sensor Array with a note attached 497 | -9/Mines | Found Prototype Device 585 | -9/Mines | Discovered new exit (range 8) 689 | -9/Mines | Met a Derelict who couldn't figure out how to use a Trap Extractor 702 | -9/Mines | Build established: Sprinter 733 | -9/Mines | Found a hidden stash of uninstalled traps 788 | -9/Mines | Deemed a non-threat by the Exiles lab entrance 788 | -9/Mines | Discovered new exit (range 5) 894 | -9/Mines | Discovered new exit (range 6) 896 | -9/Mines | Entered Materials 896 | -8/Materials | Evolved 2 slots: Propulsion x2 897 | -8/Materials | Identified exit to Factory 981 | -8/Materials | Identified Exp. Sensor Array 1264 | -8/Materials | Lost 3 parts (1n1u1w) 1268 | -8/Materials | Entered Factory 1268 | -7/Factory | Evolved 2 slots: Power x1, Propulsion x1 1677 | -7/Factory | Lost 8 parts (2p5n1u) 1692 | -7/Factory | Core integrity fell below 50% 1710 | -7/Factory | Core integrity fell below 20% 1728 | -7/Factory | Destroyed by G-47 Trooper with Particle Gun Last Messages --------------- the area. 01645_ Lgt. Armor Plating destroyed. 01645_ Critical hit (Burn: +37). 01645_ L-41 Fighter system corruption misinterpreted. 01645_ L-41 Fighter triggered Proton Bomb Trap. 01645_ A bubble of electromagnetic force engulfs the area. 01646_ Ion Engine destroyed. 01666_ L-41 Fighter destroyed. 01675_ W-25 Informer sends out distress signal. 01682_ C-30 ARC bursts open, deploying its payload. 01682_ S-27 Virus unfolds itself. 01684_ Exp. Sensor Array destroyed. 01686_ Sml. Storage Unit destroyed. 01699_ Slammed into S-27 Virus. 01700_ Destabilizing: System corrupted (+2). 01701_ Slammed into S-27 Virus. 01722_ System corrupted: Heat flow error (+224). Map ----- +----------------------------------------------------+ | ## # """" #? ?????????????????? | | + """"""""" # #? ?????????????????? | | ## # #? ?????????????????? | | ?###################/#######?#+#?????????????????? | | ???????????????????# #???????# #?????????????????? | | ???????????????????# #???????# #?????????????????? | | ?????############### #???????#"#?################# | | ?????#! ## #########%### | | ?????# "" # " | | ?????# "" + | | ?????# T" # | | ?????# [ "" ################[ | | ?????# "" #??????????????# ########### | | ?????# #??????????????# #?????????? | | ?????# #??????????????# #?????????? | | ?????# """"""""" #??????????????+ +????????? | | ?????# #??????????????# #????????? | | ?????# """"""""" #??????????????# ^#???????? | | ?????# #??????????????# #???????? | | ?????############/#??????????????# #???????# | | ????????????????# #??????????????# #???????# | | ?????????######## #??????????????# +???????# | | ?????? """""" ## #??????????????# #???????# | | ?????# """""" ## ##?????????????# #???????# | | ?????# """""" # s ############### #???????### | | ?????# """""" + " s @ ggb #?????????? | | ?????# #p #########+#######+##??????????? | | ?????# ## ##?????????????????????????????? | | ?????# ## #??????????????????????????????? | | ?????# / #??????????????????????????????? | | ?????############+#####??????????????????????????? | | ????????????# = #??????????????????????????? | | ????????????# #??????????????????????????? | | ????????????# #??????????????????????????? | | ????????????# #??????????????????????????? | | ????????????###########??????????????????????????? | | | | | | | | | | | | | | | | | | | | | | | | | | | | | +----------------------------------------------------+ Best States ------------- Heat Dissipation 34 Energy Generation 15 Energy Capacity 275 Matter Stores 280 Matter Capacity 300 Sight Range 16 Robot Scan Range 20 Terrain Scan Density 10 Armor Coverage 150 Evasion (%) 65 Item Schematics ----------------- None Robot Schematics ------------------ None Fabricated ------------ Nothing Repaired ---------- Nothing Studied --------- None Alien Tech Used ----------------- None Achievements -------------- Cya! Challenges ------------ None Game ------ Seed MomentumThermalGreatsword Manual? 0 Play Time 00:31:16 Cumulative 34.7 hours Start 2026.09.05 @ 15:15:05 End 2026.09.05 @ 15:42:22 Sessions 1 Manual Loads 0 Difficulty Rogue Special Mode None Game No. 85 Rogue 68 Adventurer 15 Explorer 2 Win Type - Total 0 Types 0/0/0/0/0/0/0/0/0/0 Lore% 25 Gallery% 26 Achievement% 22 Wizard Run 0 Options --------- Layout 1 ASCII 0 Keyboard 0 Movement Mouse Keybinds 0 Fullscreen 1 Font 24/Smallcaps Map View 50x35 Zoom Use 0% Tactical HUD 1 Map Filters NONE Filters NONE Steam 1 RUN: eab55e18-8d7c-4331-a41e-6f9e4f4915ef